Cogmind - Beta 15 @@@ ROGUE MODE // 2025.08.18 @ 17:32:44 Player: Mogwok Wargfriend Result: Destroyed by Triborg with Siege Cannon Performance ------------- Evolutions (0) 0 Regions Visited (3) 600 Robots Destroyed (10) 50 Value Destroyed (165) 165 Prototype IDs (3) 60 Alien Tech Used (0) 0 Bonus (278) 278 TOTAL SCORE: 1153 Bonus ------- Registered with UFD 300 Friendly Fire -22 Cogmind --------- Core Integrity 0/250 Matter 7/300 Energy 99/100 System Corruption 0% Temperature Cool (0) Movement Core (200) Ox3 Location -9/Scraptown Parts ------- > --- POWER (1) -------- (None) > --- PROPULSION (2) --- Light Treads > --- UTILITY (2) ------ Scrapoid Pod > --- WEAPON (2) ------- Light Cannon > --- INVENTORY (5) ---- Scrap Suit Improved Medium Armor Plating Overtuned Pulse Rifle Assault Rifle Peak State ------------ > --- POWER ------------ Subdweller Power Source > --- PROPULSION ------- Light Treads Compact Wheel > --- UTILITY ---------- Large Storage Unit Seismic Detector > --- WEAPON ----------- Junk Cannon > --- INVENTORY -------- Subdweller Power Source Wheel Medium Storage Unit Subdweller Optics Scrapoid Pod Autogun Shotgun Subdweller Machine Gun Light Cannon CPS Tube CPS Tube CPS Tube Hammer [Rating: 21] Favorites ----------- Power Subdweller Power Source Engine Subdweller Power Source Propulsion Compact Wheel Treads Light Treads Wheel Compact Wheel Utility Seismic Detector Device Seismic Detector Storage Small Storage Unit Weapon Light Cannon Ballistic Gun Autogun Ballistic Cannon Light Cannon Special Weapon Junk Cannon Impact Weapon Hammer Special Melee Weapon Datajack Build | -11 -10 -10 -9 ------- Run | Yrd Mat Sub Scr Slots Evolved . | . . . . Power . | . . . . Propulsion . | . . . . Utility . | . . . . Weapon . | . . . . Parts Attached 20 | 8 . 2 10 Power 3 | 1 . 1 1 Engine 3 | 1 . 1 1 Core . | . . . . Reactor . | . . . . Propulsion 4 | 3 . 1 . Treads 2 | 1 . 1 . Leg . | . . . . Wheel 2 | 2 . . . Hover . | . . . . Flight . | . . . . Utility 6 | 2 . . 4 Device 4 | 1 . . 3 Storage 2 | 1 . . 1 Processor . | . . . . Hackware . | . . . . Protection . | . . . . Artifact . | . . . . Weapon 7 | 2 . . 5 Energy Gun . | . . . . Energy Cannon . | . . . . Ballistic Gun 3 | 2 . . 1 Ballistic Cannon 1 | . . . 1 Launcher . | . . . . Special Weapon 1 | . . . 1 Impact Weapon 1 | . . . 1 Slashing Weapon . | . . . . Piercing Weapon . | . . . . Special Melee Weapon 1 | . . . 1 Unidentified Prototypes 1 | . . . 1 Parts Lost 3 | . . 1 2 Power 2 | . . 1 1 Propulsion 1 | . . . 1 Utility . | . . . . Weapon . | . . . . Highest Loss Streak 2 | . . 1 2 To Critical Strikes . | . . . . Average Backups 7 | 4 7 7 8 Power . | . 1 . . Propulsion 1 | 2 4 2 . Utility 1 | . . . 2 Weapon 2 | . 2 2 3 Tool/Special . | . . . . Unused Backups 20 | . . 5 15 Power 1 | . . 1 . Propulsion 2 | . . 1 1 Utility 5 | . . . 5 Weapon 9 | . . 3 6 Tool/Special 3 | . . . 3 Average Slot Usage (%) 99 | . 100 100 99 Engine 14 | . 14 14 14 Treads 14 | . 14 14 14 Wheel 14 | . 14 14 14 Device 14 | . 14 14 14 Storage 13 | . 14 14 13 Ballistic Gun 14 | . 28 28 12 Ballistic Cannon 11 | . . . 13 Special Melee Weapon 1 | . . . 1 Peak Build Rating 21 | 7 7 9 21 Average Rating 10 | 6 7 7 11 On Entrance 5 | . 7 7 9 Naked Turns . | . . . . Heaviest Build 32 | 12 12 14 32 Greatest Support 32 | 32 16 16 16 Greatest Overweight (x) 3 | . . . 3 Average Overweight (x) . | . . . . Largest Inventory Capacity 15 | 8 8 8 15 Average Capacity 10 | 7 8 8 10 Most Carried 15 | 7 8 8 15 Average Carried 9 | 4 7 7 9 Final Capacity 8 | 8 8 8 5 Final Carried 8 | 7 8 8 5 Class Distribution -------------------- 100% | Mutant Dominant Class ---------------- Mutant | -10/Materials Mutant | -10/Subcaves Mutant | -9/Scraptown Resources | -11 -10 -10 -9 ----------- Run | Yrd Mat Sub Scr Matter Collected 632 | 368 . 63 201 Remotely . | . . . . Salvage Created 337 | 198 . 43 96 Parts 17 | 11 . 2 4 Haulers Intercepted . | . . . . Recyclers Shooed 1 | 1 . . . Parts Field Recycled . | . . . . Retrieved Matter . | . . . . Parts Self-Destructed . | . . . . Prevented . | . . . . Kills | -11 -10 -10 -9 ------- Run | Yrd Mat Sub Scr Combat Hostiles Destroyed 3 | . . 1 2 Guns 3 | . . 1 2 Classes Destroyed 6 | 3 . 1 2 Worker 2 | 2 . . . Tunneler 4 | 4 . . . Recycler 1 | 1 . . . Subdweller 1 | . . 1 . Explorer 1 | . . . 1 Scrapper 1 | . . . 1 Best Kill Streak 3 | 3 . 1 2 Combat Bots Only 2 | . . 1 2 Max Kills in Single Turn 1 | 1 . 1 1 Gunslinging . | . . . . Exploded . | . . . . Melee . | . . . . Uniques/NPCs Destroyed . | . . . . Combat | -11 -10 -10 -9 -------- Run | Yrd Mat Sub Scr Hostile Shots Fired 36 | . . 11 25 Missed 11 | . . 2 9 Hits 25 | . . 9 16 Melee 2 | . . . 2 Projectile 23 | . . 9 14 Critical Strikes 1 | . . . 1 Damage Taken 862 | . . 270 592 Core 285 | . . 40 245 Absorbed by Shields . | . . . . Regen/Repaired (Parts) 76 | . . . 76 Core Remaining (%) 100 | 100 . . . Volleys Fired 41 | 22 . 12 7 Largest 2 | 2 . 2 2 Hottest 53 | 40 . 40 53 Shots Fired 82 | 44 . 24 14 Gun 75 | 44 . 24 7 Cannon 7 | . . . 7 Launcher . | . . . . Special . | . . . . Kinetic 82 | 44 . 24 14 Thermal . | . . . . Explosive . | . . . . Electromagnetic . | . . . . Robot Hit Streak 9 | 7 . 9 3 Robot Miss Streak 3 | 3 . 2 1 Penetration Max . | . . . . Secondary Targets . | . . . . Shots Hit Robots 55 | 30 . 14 11 Core Hits 19 | 9 . 6 4 Critical Kills 1 | 1 . . . Critical Parts Destroyed 1 | 1 . . . Critical Strikes 2 | 2 . . . Destroy 2 | 2 . . . Melee Attacks 7 | . . . 7 Impact 3 | . . . 3 Slashing . | . . . . Piercing . | . . . . Sneak Attacks 2 | . . . 2 Combat Hostiles . | . . . . Follow-up Attacks . | . . . . Damage Inflicted 660 | 329 . 161 170 Guns 549 | 329 . 161 59 Cannons 111 | . . . 111 Explosions . | . . . . Melee . | . . . . Ramming . | . . . . Kinetic 660 | 329 . 161 170 Thermal . | . . . . Explosive . | . . . . Electromagnetic . | . . . . Impact . | . . . . Slashing . | . . . . Piercing . | . . . . Highest Corruption . | . . . . Average Corruption . | . . . . Corruption Purged . | . . . . Corruption Blocked . | . . . . Overload Shots . | . . . . Overflow Damage 5 | . . . 5 Projectiles 5 | . . . 5 Explosions . | . . . . Melee . | . . . . Knockbacks 5 | . . . 5 Impact . | . . . . Kinetic 4 | . . . 4 Secondary 1 | . . . 1 Self-Inflicted Damage . | . . . . Shots . | . . . . Rammed . | . . . . Targets Rammed . | . . . . Kicked . | . . . . Crushed . | . . . . Highest Temperature 44 | . . . 44 Average Temperature 19 | . . . 19 Received Heat Transfer 90 | . . 9 81 Siege Activations . | . . . . Martial Activations . | . . . . Shielding Activations . | . . . . Robots Disrupted . | . . . . Combat Hostiles . | . . . . Robots Corrupted . | . . . . Combat Hostiles . | . . . . Parts Fried . | . . . . Impact Corruptions 1 | . . . 1 Robots Melted . | . . . . Combat Hostiles . | . . . . Parts Melted 1 | . . . 1 Heat Transferred . | . . . . Parts Sabotaged . | . . . . Parts Stolen . | . . . . Parts Stripped . | . . . . Power Chain Reactions . | . . . . Alert | -11 -10 -10 -9 ------- Run | Yrd Mat Sub Scr Maximum Alert Level . | . . . . Low Security (%) 100 | 100 100 . . Level 1 . | . . . . Level 2 . | . . . . Level 3 . | . . . . Level 4 . | . . . . Level 5 . | . . . . High Security . | . . . . Max Security . | . . . . Peak Influence 10 | 10 . . . Initial . | . . . . Average 1 | 1 . . . Influence Increases 35 | 35 . . . Destroy 0b10 Robot/NC 35 | 35 . . . Influence Decreases 35 | 35 . . . Time Decay 35 | 35 . . . Squads Dispatched . | . . . . Investigation . | . . . . Extermination . | . . . . Reinforcement . | . . . . Assault . | . . . . Garrison . | . . . . Intercept . | . . . . Searches Triggered . | . . . . Construction Impeded . | . . . . Haulers Reinforced . | . . . . Active Scanning Responses . | . . . . Cargo Convoy Interrupts . | . . . . Stealth | -11 -10 -10 -9 --------- Run | Yrd Mat Sub Scr Distress Signals . | . . . . Communications Jammed . | . . . . Distress Signals . | . . . . Times Spotted 12 | . . 4 8 Peak Tracking Total 17 | . . 2 17 Tactical Retreats . | . . . . Traps | -11 -10 -10 -9 ------- Run | Yrd Mat Sub Scr Traps Triggered . | . . . . Indirectly . | . . . . Trap Hack Attempts . | . . . . Triggered . | . . . . Disarmed . | . . . . Reprogrammed . | . . . . Reused . | . . . . Traps Extracted . | . . . . Installed . | . . . . Triggered . | . . . . Machines | -11 -10 -10 -9 ---------- Run | Yrd Mat Sub Scr Machines Disabled 2 | . . . 2 Max in Single Turn 1 | . . . 1 Machines Repaired . | . . . . Machines Dismantled . | . . . . Machines Sabotaged . | . . . . Overloaded Fab Kills . | . . . . Hacking | -11 -10 -10 -9 --------- Run | Yrd Mat Sub Scr Machines Accessed 5 | . . . 5 Terminals . | . . . . Fabricators . | . . . . Repair Stations . | . . . . Recycling Units . | . . . . Scanalyzers . | . . . . Garrison Access . | . . . . Total Hacks 24 | . . . 24 Successful 24 | . . . 24 Failed . | . . . . Catastrophic . | . . . . Database Lockouts . | . . . . Manual 3 | . . . 3 Terminals . | . . . . Fabricators . | . . . . Repair Stations . | . . . . Recycling Units . | . . . . Scanalyzers . | . . . . Garrison Access . | . . . . Terminal Hacks 24 | . . . 24 Record 18 | . . . 18 Robot Analysis 6 | . . . 6 Fabricator Hacks . | . . . . Repair Station Hacks . | . . . . Recycling Unit Hacks . | . . . . Scanalyzer . | . . . . Garrison Access Hacks . | . . . . Unauthorized Hacks . | . . . . Terminals . | . . . . Fabricators . | . . . . Repair Stations . | . . . . Recycling Units . | . . . . Scanalyzers . | . . . . Garrison Access . | . . . . Data Cores Recovered . | . . . . Used . | . . . . Hacking Detections . | . . . . Full Trace Events . | . . . . Feedback Events . | . . . . Feedback Blocked . | . . . . Robot Schematics Acquired . | . . . . Robots Built . | . . . . Authchips . | . . . . Time . | . . . . Total Robot Build Rating . | . . . . Part Schematics Acquired . | . . . . Parts Built . | . . . . Authchips . | . . . . Time . | . . . . Total Part Build Rating . | . . . . Parts Repaired . | . . . . Time . | . . . . Parts Recycled . | . . . . Recycled Matter . | . . . . Retrieved Matter . | . . . . Retrieved Components . | . . . . Parts Scanalyzed . | . . . . Part Schematics Acquired . | . . . . Parts Damaged . | . . . . Bothacking | -11 -10 -10 -9 ------------ Run | Yrd Mat Sub Scr Used RIF Installer . | . . . . Robots Hacked 2 | . . . 2 Non-combat . | . . . . Combat 2 | . . . 2 Robot Hacks Applied 2 | . . . 2 parse_system 2 | . . . 2 Relay Couplers Released . | . . . . Fabnet Peak Effective % . | . . . . Robots Rewired . | . . . . Allies Hacked . | . . . . Hacks Repelled . | . . . . Allies | -11 -10 -10 -9 -------- Run | Yrd Mat Sub Scr Total Allies . | . . . . Largest Group . | . . . . Highest-Rated Group . | . . . . Highest-Rated Ally . | . . . . Total Orders . | . . . . Ally Attacks . | . . . . Total Damage . | . . . . Kills . | . . . . Allies Corrupted . | . . . . Allies Melted . | . . . . Intel | -11 -10 -10 -9 ------- Run | Yrd Mat Sub Scr Active Infowar (turns) 2988 | 154 75 304 2455 Sensors 516 | . . . 516 Seismic 2472 | 154 75 304 1939 Robot Analysis Total 6 | . . . 6 Derelict Logs Recovered 4 | . . 1 3 Drone Launches . | . . . . Drone Recoveries . | . . . . Exploration | -11 -10 -10 -9 ------------- Run | Yrd Mat Sub Scr Turns Passed 3173 | 206 75 304 2588 Spaces Moved 2515 | 127 49 193 2146 Core 4 | 3 . . 1 Treads . | . . . . Legs . | . . . . Wheels 2511 | 124 49 193 2145 Hover . | . . . . Flight . | . . . . Fastest Speed 50 | 50 100 100 100 Average Speed 112 | 98 100 100 114 Slowest Speed 200 | 100 100 100 200 Overloaded Moves . | . . . . Propulsion Burnouts . | . . . . Robots Hopped . | . . . . Potential Cave-ins . | . . . . Cave-ins Triggered . | . . . . Exploration Rate (%) 29 | 5 8 11 92 Regions Visited 3 Branch Regions 2 Pre-discovered Areas . | . . . . Known Exits Taken . | . . . . Unknown Exits Taken 3 | 1 1 1 . Scrap Searched 4 | . . . 4 Spaces Dug . | . . . . Terrain Destroyed . | . . . . Melee . | . . . . Projectile . | . . . . AOE . | . . . . Terrain Rammed . | . . . . Walls Destroyed . | . . . . Machines Disabled . | . . . . Actions | -11 -10 -10 -9 --------- Run | Yrd Mat Sub Scr Total 2788 | 164 75 286 2263 Wait 141 | . 26 66 49 Move 2512 | 126 48 192 2146 Hop . | . . . . Pick Up 33 | 7 1 7 18 Fast Attach 11 | 7 . . 4 Attach 6 | 1 . 1 4 Detach 6 | 1 . . 5 Swap 6 | . . 1 5 Drop 25 | . . 7 18 Fire 41 | 22 . 12 7 Melee 7 | . . . 7 Ram . | . . . . Kick . | . . . . Crush . | . . . . Escape Stasis . | . . . . Rewire . | . . . . Trap . | . . . . Miscellaneous . | . . . . Route ------- -11/Scrapyard -10/Materials -10/Subcaves (discovered 2 exits: [*Mat] / *Scr) -9/Scraptown (discovered 1 exit: [*Fac]) History --------- Turn | Location | Event 16 | -11/Scrapyard | Discovered new exit (range 15) 207 | -11/Scrapyard | Entered Materials 208 | -10/Materials | Met a group of wandering Federalists 260 | -10/Materials | Discovered new exit (range 3) 282 | -10/Materials | Entered Subcaves 283 | -10/Subcaves | Continued accompanying wandering Federalists (5) 283 | -10/Subcaves | Approached by a straggling Scientist 303 | -10/Subcaves | Build established: Mutant 336 | -10/Subcaves | Discovered new exit (range 14) 419 | -10/Subcaves | Learned Materials stockpile data 441 | -10/Subcaves | Lost 3 allies 553 | -10/Subcaves | Wandering Federalist uncovered a shortcut to Scraptown 586 | -10/Subcaves | Entered Scraptown 738 | -9/Scraptown | Heard Great Nut preacher, LISTEN AND RECITE! 917 | -9/Scraptown | Discovered new exit (range 7) 1006 | -9/Scraptown | Scanned Subdweller tech in exchange for log data 1009 | -9/Scraptown | Learned location of 1 exit from Factory 1010 | -9/Scraptown | Learned location of 2 exits from Research 1049 | -9/Scraptown | Visited Observation Area 1103 | -9/Scraptown | Visited SPCMW 1242 | -9/Scraptown | Visited Cyclists 1256 | -9/Scraptown | Visited Comm Corps 1528 | -9/Scraptown | Visited Scrapoid Research Area 1561 | -9/Scraptown | Visited Shadow of the Wyrm 1586 | -9/Scraptown | Visited CR-KLE's Repair Center 1615 | -9/Scraptown | Visited UFD Registry 1615 | -9/Scraptown | Registered with UFD as "Alphacore" 1664 | -9/Scraptown | Entered Cyclist Reading Room 1805 | -9/Scraptown | Visited Curators Association 1843 | -9/Scraptown | Visited Scrap Suit Storage 1879 | -9/Scraptown | Visited Abandonware Association 1897 | -9/Scraptown | Learned abandonware demo "REPAIR.EXE" 1897 | -9/Scraptown | Learned abandonware demo "REVENGE.EXE" 1934 | -9/Scraptown | Visited LU-1G1's Boring Crew 1997 | -9/Scraptown | Delivered Scrap Shield to a Scientist 2180 | -9/Scraptown | Visited Analyses Database 2205 | -9/Scraptown | Visited Scrapoid Pod Storage 2211 | -9/Scraptown | Found Scrapoid Pod 2232 | -9/Scraptown | Visited Junk Cannon Lab 2259 | -9/Scraptown | Found Prototype Special Weapon 2259 | -9/Scraptown | Identified Junk Cannon 2293 | -9/Scraptown | Visited Supply Room 2337 | -9/Scraptown | Visited Chapter 10 2384 | -9/Scraptown | Visited Research Penetration Think Tank 2927 | -9/Scraptown | CR-KLE repaired 4 parts 3040 | -9/Scraptown | Attacked by Scraptown defenders 3083 | -9/Scraptown | Core integrity fell below 50% 3164 | -9/Scraptown | Found Scrap Suit 3174 | -9/Scraptown | Destroyed by Triborg with Siege Cannon Last Messages --------------- yourself to blame! 03146_ Dropped Sub. Optics. 03146_ Dropped System Shield. 03148_ Acquired Assault Rifle. 03158_ Acquired Corrupted Ovr. Pulse Rifle. 03161_ Acquired Imp. Medium Armor Plating. 03163_ Dropped Wheel. 03164_ Acquired Scrap Suit. 03166_ Siege Slug penetrates Wall. 03168_ Dropped Autogun. 03168_ Siege Slug penetrates Machine. 03168_ Siege Slug penetrates Wall. 03168_ SS Performance Data disabled. 03170_ Penetrated by Siege Slug. 03170_ Sub. Power Source destroyed. 03170_ Knocked back. 03172_ Penetrated by Siege Slug. 03172_ Com. Wheel destroyed. 03172_ Critical hit (Blast). 03174_ Penetrated by Siege Slug. Map ----- +----------------------------------------------------+ | ?#"""" ""#? "" ""?????????????#"" "## | | "#"""" ""# "" ????????????###"" "## | | "#"""" ""# " ???????###### #"" "## | | ######" "" ""??????? | | ?????#" "" ""??????? "## | | ######" ""# " ???????###### #"" "## | | ""# "" ????????????###"" "## | | ""#? "" ""?????????????#"" "#### | | ""#?? ?????????????#"" "#??? | | ""#???? ?????????????#"" "#??? | | ""###### ################"" "#??? | | """""""""""""""""""""""""""" "#### | | """""""""""""""""""""""""""" | | TT "## # | | gTT "## | | "## | | #""""#" j ## | | #????#" g # | | #????#"""""" """""" "" """"""""""" """""" ## | | #????####### #######;;## ########### ###### ## # | | ??????#" "## E #??# ## ## | | ??????##"" ""###; x ##??# ## #### | | ???????#=" "!#?#" !"#??# """"" ## #??? | | ??????##"" ""###"! !"#??# "###" ## #??? | | ??????#" "##"! % "#??# "#X#" ## #??? | | ??????##"" ""###"! @!"#??# "# #" ## #### | | ???????#]" "$#?#" =! "#??# ## | | ???????#"" ""#?#### ! ##??# " " " ## | | ??????#" """ "##!/#"/!= #??#"""""""""## | | ??????#### "[" #####|![[%=[!#??############ | | ?????????#"###"#???#]|##;#;##?????????????# | | ?????????###?###???#########??????????????# #### | | ??######################################### #### | | ??# ##"""##"""##"""##"""##"""##" "# """" | | ??# """"""" ## ""## ""##" "##"""##"" ##" # "" " | | ??# """"""" " | | ??# """"""" " " | | ??# """"""" & """" | | ??# """"""" ##"""##"""##"" ##"|"##! %##"" ## ##### | | ??# ##"""##"""##"""##"""##"""##"""####???? | | ??#########################################??????? | | ?????????????????????????????????????????????????? | | ?????????????????????????????????????????????????? | | ?????????????????????????????????????????????????? | | ?????????????????????????????????????????????????? | | ?????????????????????????????????????????????????? | | ?????????????????????????????????????????????????? | | ?????????????????????????????????????????????????? | | ?????????????????????????????????????????????????? | | ?????????????????????????????????????????????????? | +----------------------------------------------------+ Best States ------------- Heat Dissipation 44 Energy Generation 15 Energy Capacity 200 Matter Stores 300 Matter Capacity 300 Sight Range 16 Robot Scan Range 14 Terrain Scan Density 10 Evasion (%) 40 Item Schematics ----------------- None Robot Schematics ------------------ None Fabricated ------------ Nothing Repaired ---------- Nothing Alien Tech Used ----------------- None Achievements -------------- None Challenges ------------ None Game ------ Seed LauncherSmartCloak Manual? 0 Play Time 00:29:49 Cumulative 319.5 hours Start 2025.08.18 @ 16:41:00 End 2025.08.18 @ 17:32:44 Sessions 1 Manual Loads 0 Difficulty Rogue Special Mode None Game No. 276 Rogue 276 Adventurer 0 Explorer 0 Win Type - Total 2 Types 2/0/0/0/0/0/0/0/0/0 Lore% 72 Gallery% 65 Achievement% 53 Wizard Run 0 Options --------- Layout 2 ASCII 1 Keyboard 1 Movement Numpad Keybinds 0 Fullscreen 2 Font 32/TamsynBold Map View 50x44 Zoom Use 0% Tactical HUD 1 Map Filters NONE Filters NONE Steam 1 RUN: d96b587e-00bd-4250-89c4-2cc28a66e101